[Event "FIDE World Rapid-ch Open 2018"]
[White "Hirneise, Tobias"]
[Black "Kovalenko, Igor"]
[Site "St. Petersburg"]
[Round "4.89"]
[Annotator "ChessBase"]
[Result "0-1"]
[Date "2018.12.26"]
[WhiteElo "2464"]
[BlackElo "2657"]
[PlyCount "172"]
[TimeControl "900+10"]

1. e4 {[%emt 0:0:0]} d5 {[%emt 0:0:1]} 2. exd5 {[%emt 0:0:0]} Qxd5 {[%emt 0:0:1]
} 3. Nc3 {[%emt 0:0:0]} Qa5 {[%emt 0:0:0]} 4. d4 {[%emt 0:0:0]} Nf6 {[%emt 0:0:1]} 5. Bd2 {[%emt 0:0:0]} c6 {[%emt 0:0:57]} 6. Bc4 {[%emt 0:0:5]
} Qc7 {[%emt 0:0:44]} 7. Qe2 {[%emt 0:0:14]} Nbd7 {[%emt 0:0:0]} 8. 0-0-0 {[%emt 0:0:31]} Nb6 {[%emt 0:0:4]} 9. Bb3 {[%emt 0:0:2]} Bg4 {[%emt 0:0:40]} 10. f3 {[%emt 0:0:15]} Bd7 {[%emt 0:0:1]} 11. Kb1 {[%emt 0:0:0]} h6 {[%emt 0:2:24]} 12. f4 {[%emt 0:0:51]} Bf5 {[%emt 0:0:32]} 13. Nf3 {[%emt 0:0:7]} e6 {[%emt 0:0:1]} 14. Ne5 {[%emt 0:0:6]} h5 {[%emt 0:0:0]} 15. g3 {[%emt 0:0:40]} 0-0-0 {[%emt 0:0:8]} 16. h3 {[%emt 0:1:45]} Nfd5 {[%emt 0:3:7]} 17. g4 {[%emt 0:0:28]} Bh7 {[%emt 0:0:1]} 18. gxh5 {[%emt 0:0:35]
} Bf5 {[%emt 0:0:7]} 19. Ne4 {[%emt 0:1:9]} Bxe4 {[%emt 0:0:0]} 20. Qxe4 {[%emt 0:0:2]} Rxh5 {[%emt 0:0:1]} 21. Ba5 {[%emt 0:0:38]} Rf5 {[%emt 0:3:49]} 22. c4 {[%emt 0:1:44]} Rxf4 {[%emt 0:0:1]} 23. Qe1 {[%emt 0:0:39]
} Nf6 {[%emt 0:0:4]} 24. c5 {[%emt 0:0:17]} Rfxd4 {[%emt 0:0:0]} 25. Rxd4 {[%emt 0:1:20]} Rxd4 {[%emt 0:0:1]} 26. cxb6 {[%emt 0:0:5]} axb6 {[%emt 0:0:0]} 27. Bc3 {[%emt 0:0:8]} Re4 {[%emt 0:0:16]} 28. Qg3 {[%emt 0:1:3]
} Bd6 {[%emt 0:1:6]} 29. Re1 {[%emt 0:1:34]} Kb8 {[%emt 0:0:0]} 30. Bc2 {[%emt 0:1:15]} Rxe1+ {[%emt 0:0:9]} 31. Qxe1 {[%emt 0:0:1]} Nd5 {[%emt 0:0:2]} 32. Nc4 {[%emt 0:0:7]} Nxc3+ {[%emt 0:0:45]} 33. Qxc3 {[%emt 0:0:3]
} Bf8 {[%emt 0:0:41]} 34. a4 {[%emt 0:0:56]} Ka7 {[%emt 0:0:0]} 35. Qd4 {[%emt 0:0:23]} g6 {[%emt 0:0:15]} 36. a5 {[%emt 0:0:16]} Bc5 {[%emt 0:0:2]
} 37. axb6+ {[%emt 0:0:4]} Bxb6 {[%emt 0:0:6]} 38. Nxb6 {[%emt 0:0:17]
} Qxb6 {[%emt 0:0:1]} 39. Qf6 {[%emt 0:0:3]} Qc7 {[%emt 0:0:0]} 40. h4 {[%emt 0:0:17]} Qd7 {[%emt 0:0:8]} 41. Kc1 {[%emt 0:0:27]} Kb6 {[%emt 0:0:3]} 42. Qf2+ {[%emt 0:0:7]} Kc7 {[%emt 0:0:3]} 43. Qf4+ {[%emt 0:0:4]
} Kd8 {[%emt 0:0:2]} 44. h5 {[%emt 0:0:21]} gxh5 {[%emt 0:0:0]} 45. Qg5+ {[%emt 0:0:6]} Kc7 {[%emt 0:0:9]} 46. Qxh5 {[%emt 0:0:5]} f5 {[%emt 0:0:17]} 47. Qg5 {[%emt 0:0:7]} Qd5 {[%emt 0:0:49]} 48. Qf6 {[%emt 0:0:13]
} b5 {[%emt 0:0:26]} 49. b4 {[%emt 0:0:44]} Kd6 {[%emt 0:0:8]
} 50. Qd8+ {[%emt 0:0:28]} Ke5 {[%emt 0:0:1]} 51. Qh8+ {[%emt 0:0:3]} Kf4 {[%emt 0:0:3]} 52. Qh2+ {[%emt 0:0:18]} Ke3 {[%emt 0:1:13]} 53. Qg1+ {[%emt 0:0:53]
} Ke2 {[%emt 0:0:19]} 54. Qh2+ {[%emt 0:0:7]} Kf1 {[%emt 0:0:0]} 55. Qf4+ {[%emt 0:0:30]} Ke2 {[%emt 0:0:7]} 56. Qh2+ {[%emt 0:0:5]} Kf1 {[%emt 0:0:0]} 57. Qf4+ {[%emt 0:0:7]} Kg2 {[%emt 0:0:0]} 58. Qg5+ {[%emt 0:0:12]
} Kh3 {[%emt 0:0:0]} 59. Qh5+ {[%emt 0:0:15]} Kg3 {[%emt 0:0:0]} 60. Qg5+ {[%emt 0:0:3]} Kf3 {[%emt 0:0:0]} 61. Qh5+ {[%emt 0:0:17]} Ke3 {[%emt 0:0:0]} 62. Qg5+ {[%emt 0:0:1]} Kf3 {[%emt 0:0:39]} 63. Qh5+ {[%emt 0:0:2]
} Ke3 {[%emt 0:0:1]} 64. Qg5+ {[%emt 0:0:1]} Kd4 {[%emt 0:0:0]} 65. Kb2 {[%emt 0:0:22]} Ke5 {[%emt 0:1:5]} 66. Qg7+ {[%emt 0:0:17]} Kf4 {[%emt 0:0:10]} 67. Qh6+ {[%emt 0:0:1]} Ke5 {[%emt 0:0:12]} 68. Qg7+ {[%emt 0:0:2]
} Kd6 {[%emt 0:0:11]} 69. Qf8+ {[%emt 0:0:8]} Kc7 {[%emt 0:0:0]} 70. Qg7+ {[%emt 0:0:18]} Qd7 {[%emt 0:0:2]} 71. Qf6 {[%emt 0:0:16]} Qd6 {[%emt 0:0:1]} 72. Bb3 {[%emt 0:0:21]} Qxb4 {[%emt 0:0:9]} 73. Qxe6 {[%emt 0:0:2]
} Qd4+ {[%emt 0:0:6]} 74. Ka2 {[%emt 0:0:19]} f4 {[%emt 0:0:0]} 75. Bc2 {[%emt 0:0:10]} Qd2 {[%emt 0:0:46]} 76. Kb1 {[%emt 0:0:13]} Qd6 {[%emt 0:0:9]} 77. Qf7+ {[%emt 0:0:3]} Kb6 {[%emt 0:0:1]} 78. Kc1 {[%emt 0:0:5]
} c5 {[%emt 0:0:5]} 79. Qf5 {[%emt 0:0:15]} c4 {[%emt 0:0:3]
} 80. Be4 {[%emt 0:0:7]} Ka5 {[%emt 0:0:3]} 81. Kc2 {[%emt 0:0:7]} Ka4 {[%emt 0:0:21]
} 82. Qf7 {[%emt 0:0:8]} Qe5 {[%emt 0:0:27]} 83. Bc6 {[%emt 0:0:0]} Qe2+ {[%emt 0:0:2]} 84. Kc3 {[%emt 0:0:5]} Qd3+ {[%emt 0:0:5]} 85. Kb2 {[%emt 0:0:3]} Qd2+ {[%emt 0:0:1]} 86. Kb1 {[%emt 0:0:21]} Kb3 {[%emt 0:0:3]
} 0-1

[Event "FIDE World Rapid-ch Open 2018"]
[White "Hakobyan, Aram"]
[Black "Lobanov, Sergei"]
[Site "St. Petersburg"]
[Round "4.90"]
[Annotator "ChessBase"]
[Result "0-1"]
[Date "2018.12.26"]
[WhiteElo "2545"]
[BlackElo "2526"]
[PlyCount "166"]
[TimeControl "900+10"]

1. d4 {[%emt 0:0:0]} Nf6 {[%emt 0:0:0]} 2. c4 {[%emt 0:0:0]} e6 {[%emt 0:0:0]} 3. Nf3 {[%emt 0:0:0]} b6 {[%emt 0:0:0]} 4. g3 {[%emt 0:0:0]} Ba6 {[%emt 0:0:0]} 5. Qc2 {[%emt 0:0:7]} c5 {[%emt 0:0:23]} 6. d5 {[%emt 0:0:0]} exd5 {[%emt 0:0:1]} 7. cxd5 {[%emt 0:0:5]} Bb7 {[%emt 0:0:9]} 8. e4 {[%emt 0:0:6]} Qe7 {[%emt 0:1:8]} 9. Bg2 {[%emt 0:0:1]} Qxe4+ {[%emt 0:0:0]} 10. Qxe4+ {[%emt 0:0:2]} Nxe4 {[%emt 0:0:1]} 11. 0-0 {[%emt 0:0:0]} Bxd5 {[%emt 0:1:12]} 12. Re1 {[%emt 0:0:4]} Be7 {[%emt 0:2:32]} 13. Nh4 {[%emt 0:3:3]} Nf6 {[%emt 0:1:41]} 14. Nf5 {[%emt 0:3:59]} Nc6 {[%emt 0:0:3]
} 15. Nxg7+ {[%emt 0:0:34]} Kd8 {[%emt 0:0:3]} 16. Nf5 {[%emt 0:0:14]
} Bxg2 {[%emt 0:0:4]} 17. Kxg2 {[%emt 0:1:7]} Nd5 {[%emt 0:0:0]} 18. Nc3 {[%emt 0:1:43]} Nxc3 {[%emt 0:0:35]} 19. Nxe7 {[%emt 0:0:22]
} Nxe7 {[%emt 0:0:10]} 20. bxc3 {[%emt 0:0:1]} Rg8 {[%emt 0:1:2]} 21. c4 {[%emt 0:1:4]
} d6 {[%emt 0:1:14]} 22. Bf4 {[%emt 0:0:59]} Rg6 {[%emt 0:0:0]} 23. Rad1 {[%emt 0:0:39]} Kd7 {[%emt 0:0:5]} 24. h4 {[%emt 0:0:1]} Rag8 {[%emt 0:1:32]} 25. Re5 {[%emt 0:1:14]} Rf6 {[%emt 0:2:2]} 26. Bc1 {[%emt 0:2:5]
} Rf5 {[%emt 0:1:15]} 27. Re3 {[%emt 0:0:34]} Rg6 {[%emt 0:0:0]} 28. Bb2 {[%emt 0:0:26]} Re6 {[%emt 0:1:9]} 29. Rxe6 {[%emt 0:0:8]} fxe6 {[%emt 0:0:7]} 30. f4 {[%emt 0:0:4]} Rf8 {[%emt 0:0:37]} 31. h5 {[%emt 0:0:18]
} d5 {[%emt 0:0:4]} 32. Kf3 {[%emt 0:0:33]} d4 {[%emt 0:0:5]
} 33. g4 {[%emt 0:0:1]} Nc6 {[%emt 0:0:18]} 34. Ke4 {[%emt 0:0:2]} Na5 {[%emt 0:0:12]
} 35. Rc1 {[%emt 0:0:15]} Kd6 {[%emt 0:0:5]} 36. g5 {[%emt 0:0:0]} a6 {[%emt 0:0:5]} 37. a4 {[%emt 0:0:21]} Rb8 {[%emt 0:0:13]} 38. Ba3 {[%emt 0:0:11]} Nb3 {[%emt 0:0:11]} 39. Rg1 {[%emt 0:0:16]} Nd2+ {[%emt 0:0:8]
} 40. Kd3 {[%emt 0:0:2]} Nf3 {[%emt 0:0:1]} 41. Rg3 {[%emt 0:0:0]} Nh4 {[%emt 0:0:5]} 42. Ke4 {[%emt 0:0:14]} b5 {[%emt 0:0:14]} 43. cxb5 {[%emt 0:0:42]} axb5 44. axb5 {[%emt 0:0:1]} Rxb5 {[%emt 0:0:4]} 45. g6 {[%emt 0:0:1]} hxg6 {[%emt 0:0:5]} 46. hxg6 {[%emt 0:0:23]} Nf5 {[%emt 0:0:9]
} 47. Rh3 {[%emt 0:0:16]} Rb8 {[%emt 0:0:13]} 48. Rf3 Ra8 {[%emt 0:0:42]
} 49. Rb3 {[%emt 0:0:13]} Kc6 {[%emt 0:0:9]} 50. Ke5 {[%emt 0:0:0]} c4 {[%emt 0:0:1]} 51. Rh3 {[%emt 0:0:0]} d3 {[%emt 0:0:11]} 52. Bb4 {[%emt 0:0:1]} Kb5 {[%emt 0:0:15]} 53. Bc3 {[%emt 0:0:26]} Ra3 {[%emt 0:0:18]
} 54. Kxe6 {[%emt 0:0:21]} Rxc3 {[%emt 0:0:1]} 55. Rh5 {[%emt 0:0:1]
} d2 {[%emt 0:0:9]} 56. Rxf5+ {[%emt 0:0:23]} Kb4 {[%emt 0:0:0]} 57. g7 {[%emt 0:0:7]} Rg3 {[%emt 0:0:17]} 58. Rg5 {[%emt 0:0:7]} Re3+ {[%emt 0:0:1]} 59. Re5 {[%emt 0:0:9]} Rg3 {[%emt 0:0:3]} 60. Rg5 {[%emt 0:0:1]
} Re3+ {[%emt 0:0:13]} 61. Re5 {[%emt 0:0:1]} d1=Q {[%emt 0:0:0]} 62. g8=Q {[%emt 0:0:5]} Rxe5+ {[%emt 0:0:7]} 63. fxe5 {[%emt 0:0:0]} c3 {[%emt 0:0:5]} 64. Qb8+ {[%emt 0:0:5]} Ka4 {[%emt 0:0:4]} 65. Qa7+ {[%emt 0:0:13]} Kb3 {[%emt 0:0:2]} 66. Qb6+ {[%emt 0:0:16]} Ka2 {[%emt 0:0:3]
} 67. Ke7 {[%emt 0:0:34]} Qd5 {[%emt 0:0:43]} 68. Qa6+ {[%emt 0:0:18]
} Kb3 {[%emt 0:0:11]} 69. Qb6+ {[%emt 0:0:1]} Ka2 {[%emt 0:0:0]} 70. Qa6+ {[%emt 0:0:4]} Kb3 {[%emt 0:0:1]} 71. Qb6+ {[%emt 0:0:1]} Kc4 {[%emt 0:0:12]} 72. Qa6+ {[%emt 0:0:28]} Kb4 {[%emt 0:0:10]} 73. Qd6+ {[%emt 0:0:12]
} Qc5 {[%emt 0:0:9]} 74. Kf6 {[%emt 0:0:17]} c2 {[%emt 0:0:0]} 75. Qd2+ {[%emt 0:0:1]} Kb3 {[%emt 0:0:12]} 76. Qc1 {[%emt 0:0:19]} Qd4 {[%emt 0:0:27]} 77. Kf5 {[%emt 0:0:9]} Qb2 {[%emt 0:0:7]} 78. Qe3+ {[%emt 0:0:2]
} Ka2 {[%emt 0:0:0]} 79. Qa7+ {[%emt 0:0:18]} Kb1 {[%emt 0:0:0]} 80. e6 {[%emt 0:0:1]} c1=Q {[%emt 0:0:8]} 81. e7 {[%emt 0:0:1]} Qb5+ {[%emt 0:0:13]} 82. Ke6 {[%emt 0:0:2]} Qcc4+ {[%emt 0:0:5]} 83. Kf6 {[%emt 0:0:3]
} Qf4+ {[%emt 0:0:8]} 0-1

[Event "FIDE World Rapid-ch Open 2018"]
[White "Abdusattorov, Nodirbek"]
[Black "Belozerov, Andrei"]
[Site "St. Petersburg"]
[Round "4.91"]
[Annotator "ChessBase"]
[Result "0-1"]
[Date "2018.12.26"]
[WhiteElo "2546"]
[BlackElo "2528"]
[PlyCount "72"]
[TimeControl "900+10"]

1. e4 {[%emt 0:0:0]} c6 {[%emt 0:0:0]} 2. d4 {[%emt 0:0:0]} d5 {[%emt 0:0:0]} 3. exd5 {[%emt 0:0:0]} cxd5 {[%emt 0:0:0]} 4. Nf3 {[%emt 0:0:0]} Nc6 {[%emt 0:0:0]} 5. Ne5 {[%emt 0:0:0]} e6 {[%emt 0:0:10]} 6. Bb5 {[%emt 0:0:14]
} Bd7 {[%emt 0:0:6]} 7. Nxd7 {[%emt 0:0:2]} Qxd7 {[%emt 0:0:0]} 8. c3 {[%emt 0:0:1]} Bd6 {[%emt 0:0:9]} 9. 0-0 {[%emt 0:0:3]} Nf6 {[%emt 0:0:5]
} 10. Bd3 {[%emt 0:0:4]} h6 {[%emt 0:0:41]} 11. Nd2 {[%emt 0:0:0]} Rb8 {[%emt 0:0:8]} 12. f4 {[%emt 0:0:7]} Qc7 {[%emt 0:0:39]} 13. g3 {[%emt 0:0:6]} b5 {[%emt 0:2:7]} 14. a3 {[%emt 0:0:3]} a5 {[%emt 0:0:0]} 15. Nf3 {[%emt 0:0:23]} b4 {[%emt 0:0:25]} 16. axb4 {[%emt 0:0:2]} axb4 {[%emt 0:0:1]} 17. Qe2 {[%emt 0:0:18]} 0-0 {[%emt 0:0:15]} 18. Ne5 {[%emt 0:0:22]
} bxc3 {[%emt 0:0:7]} 19. bxc3 {[%emt 0:0:3]} Ne7 {[%emt 0:0:0]} 20. Bd2 {[%emt 0:0:13]} Rb2 {[%emt 0:0:42]} 21. Rfb1 {[%emt 0:0:9]} Rxb1+ {[%emt 0:0:27]} 22. Rxb1 {[%emt 0:0:3]} Rb8 {[%emt 0:0:14]} 23. Re1 {[%emt 0:1:23]
} Rb2 {[%emt 0:0:16]} 24. Nf3 {[%emt 0:0:44]} Qb7 {[%emt 0:0:0]} 25. h3 {[%emt 0:1:6]} Nf5 {[%emt 0:0:13]} 26. Kg2 {[%emt 0:0:35]} Nh5 {[%emt 0:3:49]} 27. Bxf5 {[%emt 0:1:19]} exf5 {[%emt 0:0:1]} 28. Qe8+ {[%emt 0:0:34]
} Bf8 {[%emt 0:0:8]} 29. Qe5 {[%emt 0:2:31]} Nf6 {[%emt 0:0:0]} 30. Qe3 {[%emt 0:1:42]} Ne4 {[%emt 0:0:11]} 31. Qd3 {[%emt 0:0:16]} Qb3 {[%emt 0:1:16]} 32. g4 {[%emt 0:2:33]} Bd6 {[%emt 0:0:42]} 33. Kg1 {[%emt 0:0:0]} Qa2 {[%emt 0:0:40]} 34. gxf5 {[%emt 0:1:21]} Bxf4 {[%emt 0:1:4]} 35. f6 {[%emt 0:2:27]} Bxd2 {[%emt 0:0:53]} 36. Re2 {[%emt 0:0:10]} Qb1+ {[%emt 0:0:9]
} 0-1

[Event "FIDE World Rapid-ch Open 2018"]
[White "Shubin, Kirill"]
[Black "Vishnu Prasanna. V"]
[Site "St. Petersburg"]
[Round "4.92"]
[Annotator "ChessBase"]
[Result "1-0"]
[Date "2018.12.26"]
[WhiteElo "2334"]
[BlackElo "2518"]
[PlyCount "93"]
[TimeControl "900+10"]

1. e4 {[%emt 0:0:0]} c5 {[%emt 0:0:0]} 2. Nf3 {[%emt 0:0:0]} d6 {[%emt 0:0:0]} 3. d4 {[%emt 0:0:0]} cxd4 {[%emt 0:0:0]} 4. Qxd4 {[%emt 0:0:0]} Nf6 {[%emt 0:0:11]} 5. Bb5+ {[%emt 0:0:0]} Nbd7 {[%emt 0:0:11]} 6. 0-0 {[%emt 0:0:20]
} a6 {[%emt 0:1:1]} 7. Ba4 {[%emt 0:0:8]} e5 {[%emt 0:0:26]} 8. Qe3 {[%emt 0:0:28]} b5 {[%emt 0:0:25]} 9. Bb3 {[%emt 0:0:1]} Nc5 {[%emt 0:0:3]
} 10. Rd1 {[%emt 0:1:27]} Qc7 {[%emt 0:0:21]} 11. Nc3 {[%emt 0:0:0]} Nxb3 {[%emt 0:0:2]} 12. cxb3 {[%emt 0:0:34]} Bb7 {[%emt 0:0:2]} 13. Bd2 {[%emt 0:0:53]} Be7 {[%emt 0:0:6]} 14. Rac1 {[%emt 0:0:24]} Qb8 {[%emt 0:0:1]
} 15. Qe2 {[%emt 0:1:40]} h6 {[%emt 0:1:57]} 16. b4 {[%emt 0:0:0]} 0-0 {[%emt 0:0:27]} 17. Nh4 {[%emt 0:0:12]} Bc8 {[%emt 0:1:14]} 18. h3 {[%emt 0:0:33]} Be6 {[%emt 0:0:56]} 19. Nf5 {[%emt 0:1:3]} Bxf5 {[%emt 0:0:20]
} 20. exf5 {[%emt 0:0:2]} d5 {[%emt 0:0:18]} 21. Bf4 {[%emt 0:0:0]} exf4 {[%emt 0:2:43]} 22. Qxe7 {[%emt 0:0:3]} Rd8 {[%emt 0:0:2]} 23. Qe2 {[%emt 0:2:9]} Qd6 {[%emt 0:0:20]} 24. Rd4 {[%emt 0:0:9]} Rac8 {[%emt 0:0:15]
} 25. Rcd1 {[%emt 0:0:25]} Rc4 {[%emt 0:1:19]} 26. a3 {[%emt 0:0:0]} Re8 {[%emt 0:1:12]} 27. Qf3 {[%emt 0:1:12]} Qe5 {[%emt 0:0:58]} 28. Rxc4 {[%emt 0:0:54]} dxc4 {[%emt 0:0:5]} 29. Qc6 {[%emt 0:0:51]} Qxf5 {[%emt 0:0:2]
} 30. Qxa6 {[%emt 0:0:18]} f3 {[%emt 0:1:23]} 31. Qxb5 {[%emt 0:0:5]
} Re5 {[%emt 0:0:2]} 32. Qxc4 {[%emt 0:1:30]} fxg2 {[%emt 0:0:0]} 33. Qd3 {[%emt 0:0:40]} Qh5 {[%emt 0:0:19]} 34. b5 {[%emt 0:0:22]} Re6 {[%emt 0:0:42]} 35. a4 {[%emt 0:0:11]} Qh4 {[%emt 0:1:45]} 36. a5 {[%emt 0:0:10]
} g5 {[%emt 0:0:36]} 37. a6 {[%emt 0:0:14]} Nh5 {[%emt 0:0:48]
} 38. a7 {[%emt 0:0:10]} Re8 {[%emt 0:0:7]} 39. Nd5 {[%emt 0:0:8]} g4 {[%emt 0:0:6]
} 40. Kxg2 {[%emt 0:0:17]} gxh3+ {[%emt 0:0:25]} 41. Qxh3 {[%emt 0:0:1]
} Qg5+ {[%emt 0:0:2]} 42. Kh1 {[%emt 0:0:10]} Qe5 {[%emt 0:0:0]} 43. b6 {[%emt 0:0:8]} Qe2 {[%emt 0:0:6]} 44. Rg1+ {[%emt 0:0:9]} Kf8 {[%emt 0:0:1]} 45. b7 {[%emt 0:0:18]} Qe4+ {[%emt 0:0:9]} 46. f3 {[%emt 0:0:0]} Qxd5 {[%emt 0:0:2]} 47. b8=Q {[%emt 0:0:1]} 1-0

[Event "FIDE World Rapid-ch Open 2018"]
[White "Sanal, Vahap"]
[Black "Fakhrutdinov, Timur"]
[Site "St. Petersburg"]
[Round "4.93"]
[Annotator "ChessBase"]
[Result "1-0"]
[Date "2018.12.26"]
[WhiteElo "2490"]
[BlackElo "2481"]
[PlyCount "113"]
[TimeControl "900+10"]

1. e4 {[%emt 0:0:0]} e5 {[%emt 0:0:0]} 2. Nf3 {[%emt 0:0:0]} Nc6 {[%emt 0:0:0]
} 3. Bb5 {[%emt 0:0:0]} Nf6 {[%emt 0:0:0]} 4. d3 {[%emt 0:0:0]} Bc5 {[%emt 0:0:0]} 5. Bxc6 {[%emt 0:0:2]} dxc6 {[%emt 0:0:0]} 6. h3 {[%emt 0:0:15]} Qe7 {[%emt 0:2:24]} 7. Qe2 {[%emt 0:0:8]} Nd7 {[%emt 0:0:0]} 8. Be3 {[%emt 0:0:5]} 0-0 {[%emt 0:0:22]} 9. Nbd2 {[%emt 0:0:8]} Rd8 {[%emt 0:0:59]} 10. 0-0 {[%emt 0:0:15]} Nf8 {[%emt 0:0:32]} 11. Rad1 {[%emt 0:1:22]
} f6 {[%emt 0:0:48]} 12. Nb3 {[%emt 0:0:38]} Bd6 {[%emt 0:0:0]} 13. Nh4 {[%emt 0:0:24]} Be6 {[%emt 0:1:2]} 14. Nf5 {[%emt 0:1:24]} Qd7 {[%emt 0:0:11]} 15. Qf3 {[%emt 0:0:22]} Ng6 {[%emt 0:0:32]} 16. g3 {[%emt 0:0:0]} Ne7 {[%emt 0:1:22]} 17. g4 {[%emt 0:0:15]} Nxf5 {[%emt 0:2:39]} 18. gxf5 {[%emt 0:0:50]} Bf7 {[%emt 0:0:3]} 19. Qg4 {[%emt 0:1:1]} g6 {[%emt 0:1:45]
} 20. f4 {[%emt 0:1:14]} h5 {[%emt 0:1:41]} 21. Qg3 {[%emt 0:0:0]} exf4 {[%emt 0:0:12]} 22. Bxf4 {[%emt 0:0:7]} g5 {[%emt 0:0:32]} 23. d4 {[%emt 0:3:10]} Kh7 {[%emt 0:0:15]} 24. Bxd6 {[%emt 0:0:4]} cxd6 {[%emt 0:0:16]
} 25. Nd2 {[%emt 0:0:35]} Re8 {[%emt 0:0:9]} 26. Qg2 {[%emt 0:0:0]} Qe7 {[%emt 0:0:24]} 27. Rde1 {[%emt 0:0:15]} Qf8 {[%emt 0:0:11]} 28. b3 {[%emt 0:0:14]} Rad8 {[%emt 0:0:7]} 29. Nf3 {[%emt 0:0:13]} Qh6 {[%emt 0:0:10]
} 30. Re2 {[%emt 0:0:45]} Re7 {[%emt 0:0:6]} 31. Rfe1 {[%emt 0:0:22]
} Rde8 {[%emt 0:0:6]} 32. Re3 {[%emt 0:0:10]} b6 {[%emt 0:0:0]} 33. Qg3 {[%emt 0:0:11]} Rd7 {[%emt 0:0:12]} 34. Kh1 {[%emt 0:0:49]} h4 {[%emt 0:0:8]} 35. Qg2 {[%emt 0:0:12]} Bh5 {[%emt 0:0:9]} 36. Nh2 {[%emt 0:0:3]
} Rde7 {[%emt 0:0:7]} 37. Ng4 {[%emt 0:0:41]} Qg7 {[%emt 0:0:0]} 38. Qh2 {[%emt 0:0:30]} Rd7 {[%emt 0:0:16]} 39. Qe2 {[%emt 0:0:9]} Kh8 {[%emt 0:0:12]} 40. Qf2 {[%emt 0:0:4]} Rde7 {[%emt 0:0:6]} 41. Qh2 {[%emt 0:0:17]
} Rd7 {[%emt 0:0:12]} 42. c3 {[%emt 0:0:1]} c5 {[%emt 0:0:7]
} 43. e5 {[%emt 0:0:27]} fxe5 {[%emt 0:0:7]} 44. dxe5 {[%emt 0:0:30]} dxe5 {[%emt 0:0:19]} 45. f6 {[%emt 0:0:20]} Qf7 {[%emt 0:0:9]} 46. Nxe5 {[%emt 0:0:8]
} Qd5+ {[%emt 0:0:5]} 47. Kg1 {[%emt 0:0:10]} Rd6 {[%emt 0:0:0]} 48. f7 {[%emt 0:0:51]} Rf8 {[%emt 0:0:6]} 49. Rd3 {[%emt 0:0:26]} Qe6 {[%emt 0:0:15]} 50. Rde3 {[%emt 0:0:19]} Qf6 {[%emt 0:0:10]} 51. Rf1 {[%emt 0:0:6]
} Qh6 {[%emt 0:0:7]} 52. Nc4 {[%emt 0:0:8]} Rf6 {[%emt 0:0:0]} 53. Qe5 {[%emt 0:0:19]} R8xf7 {[%emt 0:0:11]} 54. Nd6 {[%emt 0:0:2]} Rf8 {[%emt 0:0:7]} 55. Ne4 {[%emt 0:0:4]} Kg7 {[%emt 0:0:17]} 56. Rd3 {[%emt 0:0:10]
} g4 {[%emt 0:0:12]} 57. Rd7+ {[%emt 0:0:9]} 1-0

[Event "FIDE World Rapid-ch Open 2018"]
[White "Teterev, Vitaly"]
[Black "Gaifullin, Artur"]
[Site "St. Petersburg"]
[Round "4.94"]
[Annotator "ChessBase"]
[Result "0-1"]
[Date "2018.12.26"]
[WhiteElo "2486"]
[BlackElo "2448"]
[PlyCount "80"]
[TimeControl "900+10"]

1. Nf3 {[%emt 0:0:0]} Nf6 {[%emt 0:0:0]} 2. g3 {[%emt 0:0:0]} d5 {[%emt 0:0:0]
} 3. Bg2 {[%emt 0:0:0]} c5 {[%emt 0:0:4]} 4. 0-0 {[%emt 0:0:0]} e6 {[%emt 0:0:1]} 5. d3 {[%emt 0:0:6]} Nc6 {[%emt 0:0:13]} 6. Nbd2 {[%emt 0:0:1]
} g6 {[%emt 0:0:9]} 7. e4 {[%emt 0:0:10]} Bg7 {[%emt 0:0:5]} 8. Re1 {[%emt 0:0:11]} 0-0 {[%emt 0:0:3]} 9. c3 {[%emt 0:0:6]} a5 {[%emt 0:0:12]
} 10. a4 {[%emt 0:0:19]} b6 {[%emt 0:0:25]} 11. exd5 {[%emt 0:0:0]} exd5 {[%emt 0:0:9]} 12. Nb1 {[%emt 0:0:8]} Bb7 {[%emt 0:0:45]} 13. Na3 {[%emt 0:0:5]} d4 {[%emt 0:0:25]} 14. c4 {[%emt 0:1:58]} Nb4 {[%emt 0:0:0]} 15. Nb5 {[%emt 0:0:25]} Bc6 {[%emt 0:0:59]} 16. Bf4 {[%emt 0:0:11]} Qc8 {[%emt 0:1:14]} 17. Qd2 {[%emt 0:2:57]} Qf5 {[%emt 0:1:53]} 18. Rad1 {[%emt 0:0:8]
} Nh5 {[%emt 0:0:16]} 19. Nh4 {[%emt 0:1:8]} Qd7 {[%emt 0:0:0]} 20. Bxc6 {[%emt 0:0:38]} Nxc6 {[%emt 0:0:50]} 21. Bc7 {[%emt 0:0:52]} Ra6 {[%emt 0:0:1]} 22. Qe2 {[%emt 0:0:40]} Rc8 {[%emt 0:2:44]} 23. Bd6 {[%emt 0:2:23]
} Raa8 {[%emt 0:0:26]} 24. Qf3 {[%emt 0:0:26]} Nf6 {[%emt 0:0:0]} 25. Ng2 {[%emt 0:0:46]} g5 {[%emt 0:1:29]} 26. h4 {[%emt 0:4:16]} Ne8 {[%emt 0:0:25]
} 27. Qd5 {[%emt 0:0:18]} Rd8 {[%emt 0:1:14]} 28. Rxe8+ {[%emt 0:0:8]
} Rxe8 {[%emt 0:0:1]} 29. Nc7 {[%emt 0:0:24]} Nb4 {[%emt 0:0:0]} 30. Qxg5 {[%emt 0:0:12]} Qxd6 {[%emt 0:0:6]} 31. Nxa8 {[%emt 0:0:3]} Rxa8 {[%emt 0:0:2]} 32. Nf4 {[%emt 0:0:2]} Re8 {[%emt 0:0:39]} 33. h5 {[%emt 0:0:25]
} Nc6 {[%emt 0:0:17]} 34. Nd5 {[%emt 0:0:3]} Ne5 {[%emt 0:0:0]} 35. Kg2 {[%emt 0:0:4]} h6 {[%emt 0:0:55]} 36. Qh4 {[%emt 0:0:11]} Qe6 {[%emt 0:0:26]} 37. Re1 {[%emt 0:0:2]} Qc6 {[%emt 0:0:22]} 38. Qe4 {[%emt 0:0:24]
} Kf8 {[%emt 0:0:2]} 39. Kf1 {[%emt 0:0:18]} Qe6 {[%emt 0:0:0]} 40. Kg2 {[%emt 0:0:5]} Nxd3 {[%emt 0:0:11]} 0-1

[Event "FIDE World Rapid-ch Open 2018"]
[White "Yeritsyan, Aram"]
[Black "Rechlis, Gad"]
[Site "St. Petersburg"]
[Round "4.95"]
[Annotator "ChessBase"]
[Result "1-0"]
[Date "2018.12.26"]
[WhiteElo "2372"]
[BlackElo "2521"]
[PlyCount "95"]
[TimeControl "900+10"]

1. e4 {[%emt 0:0:0]} c5 {[%emt 0:0:0]} 2. Nf3 {[%emt 0:0:0]} d6 {[%emt 0:0:0]} 3. d4 {[%emt 0:0:0]} cxd4 {[%emt 0:0:0]} 4. Nxd4 {[%emt 0:0:0]} Nf6 {[%emt 0:0:0]} 5. Nc3 {[%emt 0:0:2]} g6 {[%emt 0:0:2]} 6. Be3 {[%emt 0:0:2]
} Bg7 {[%emt 0:0:1]} 7. f3 {[%emt 0:0:3]} 0-0 {[%emt 0:0:2]
} 8. Qd2 {[%emt 0:0:1]} Nc6 {[%emt 0:0:1]} 9. 0-0-0 {[%emt 0:0:3]} d5 {[%emt 0:0:9]
} 10. Qe1 {[%emt 0:0:2]} e5 {[%emt 0:0:12]} 11. Nxc6 {[%emt 0:0:0]} bxc6 {[%emt 0:0:1]} 12. exd5 {[%emt 0:0:1]} Nxd5 {[%emt 0:0:1]} 13. Bc4 {[%emt 0:0:17]} Be6 {[%emt 0:0:5]} 14. Kb1 {[%emt 0:0:2]} Re8 {[%emt 0:0:13]
} 15. Ne4 {[%emt 0:0:8]} f5 {[%emt 0:0:14]} 16. Ng5 {[%emt 0:0:0]} Bc8 {[%emt 0:0:5]} 17. h4 {[%emt 0:0:28]} h6 {[%emt 0:0:46]} 18. Nh3 {[%emt 0:1:16]} a5 {[%emt 0:0:36]} 19. Qd2 {[%emt 0:0:52]} f4 {[%emt 0:0:0]} 20. Bc5 {[%emt 0:0:9]} Rb8 21. b3 {[%emt 0:0:37]} Qf6 {[%emt 0:0:0]} 22. Nf2 {[%emt 0:1:20]} e4 {[%emt 0:3:58]} 23. Bd4 {[%emt 0:0:2]} Qxd4 {[%emt 0:0:2]} 24. Qxd4 {[%emt 0:0:1]} Bxd4 {[%emt 0:0:2]} 25. Rxd4 {[%emt 0:0:1]
} exf3 {[%emt 0:0:21]} 26. Bxd5+ {[%emt 0:1:48]} cxd5 {[%emt 0:0:0]} 27. gxf3 {[%emt 0:0:2]} Bf5 {[%emt 0:0:59]} 28. Nd3 {[%emt 0:2:0]} Rbc8 {[%emt 0:1:27]} 29. Rxd5 {[%emt 0:0:43]} Re3 {[%emt 0:1:19]} 30. Rf1 {[%emt 0:0:3]
} a4 {[%emt 0:0:12]} 31. Kb2 {[%emt 0:1:38]} Re2 {[%emt 0:0:0]} 32. Rc1 {[%emt 0:0:30]} Rh2 {[%emt 0:0:14]} 33. bxa4 {[%emt 0:0:45]} Rxh4 {[%emt 0:0:6]} 34. a5 {[%emt 0:0:1]} Rh3 {[%emt 0:0:19]} 35. Ne5 {[%emt 0:0:53]
} Rh2 {[%emt 0:0:11]} 36. a6 {[%emt 0:0:23]} Bxc2 {[%emt 0:0:0]} 37. Ka1 {[%emt 0:0:21]} Ra8 {[%emt 0:0:15]} 38. Rd6 {[%emt 0:0:34]} Rg2 {[%emt 0:0:21]} 39. Nc6 {[%emt 0:3:28]} Ba4 {[%emt 0:2:12]} 40. Rd8+ {[%emt 0:0:26]
} Rxd8 {[%emt 0:0:12]} 41. Nxd8 {[%emt 0:0:2]} Rg5 {[%emt 0:0:0]} 42. Rc8 {[%emt 0:0:22]} Bd7 {[%emt 0:0:9]} 43. a7 {[%emt 0:0:21]} Bxc8 {[%emt 0:0:27]} 44. a8=Q {[%emt 0:0:2]} Rg1+ {[%emt 0:0:9]} 45. Kb2 {[%emt 0:0:2]
} Bf5 {[%emt 0:0:0]} 46. Nc6+ {[%emt 0:0:13]} Kf7 {[%emt 0:0:0]} 47. Qa7+ {[%emt 0:0:1]} Ke6 {[%emt 0:0:1]} 48. Qxg1 {[%emt 0:0:1]} 1-0